bitfinex/quotes_ETHUSD_20250110
["timestamp","ask_amount","ask_price","bid_price","bid_amount"]
[1736515207750,0.03022201,3311.1,3310.4,0.03740849]
[1736515207954,0.03022201,3311.1,3310.3,0.814]
[1736515208145,0.03022201,3311.3,3310.3,0.814]
[1736515208346,5.35213664,3311.6,3310.5,0.8295]
[1736515208586,5.35213664,3311.6,3310.8,3.02039]
[1736515208781,5.35213664,3311.6,3310.8,3.05059054]
[1736515209010,5.35213664,3311.6,3310.9,3.85831401]
[1736515209185,0.03022201,3311.6,3310.9,0.83805401]
[1736515209383,0.03022201,3311.9,3311.1,0.8009]
[1736515209570,0.03022201,3311.9,3311.2,0.22]
[1736515209772,3.01917,3312.2,3311.3,0.03019611]
[1736515209961,3.04953201,3312.1,3311.2,0.25700136]
[1736515210166,3.01933,3312.0,3311.4,0.03689961]
[1736515210489,0.03022201,3311.9,3311.2,0.22]
[1736515210662,0.03022201,3311.9,3311.5,0.03684874]
[1736515210862,3.01967,3311.7,3311.2,0.22]
[1736515211059,0.03022201,3311.6,3311.2,0.22]
[1736515211515,3.01967,3311.7,3311.3,0.03695048]
[1736515211863,0.03022201,3311.6,3311.3,0.03695048]
[1736515212059,0.03022201,3311.6,3311.2,0.22]
[1736515212391,3.01967,3311.7,3311.3,0.03695048]
[1736515212552,3.01967,3311.7,3311.2,0.22]
[1736515212767,3.01967,3311.7,3311.4,0.03689961]
[1736515213108,3.01967,3311.7,3311.5,0.03684874]
[1736515213303,5.35213664,3312.0,3311.2,0.25019809]
[1736515213476,0.03022201,3311.9,3311.2,0.22]
[1736515213663,5.35213664,3312.0,3311.4,0.7582]
[1736515214099,0.03022201,3311.9,3311.5,0.03684874]
[1736515214798,3.01966,3311.7,3311.5,0.03684874]
[1736515215104,0.03022201,3311.6,3311.2,0.22]
[1736515215397,0.03022201,3311.6,3311.3,0.03695048]
[1736515215800,0.03022201,3311.6,3311.2,0.22]
[1736515216117,0.03022201,3311.6,3311.4,0.03689961]
[1736515216317,0.03022201,3311.6,3311.3,0.03695048]
[1736515216567,3.04993201,3311.6,3311.3,0.03695048]
[1736515216725,3.01979,3311.5,3311.0,0.7662]
[1736515216929,5.80251712,3311.5,3311.4,0.03689961]
[1736515217232,3.02023,3311.0,3310.9,0.22]
[1736515217866,3.02023,3311.0,3310.5,0.7879]
[1736515218017,3.02023,3311.0,3310.7,0.22]
[1736515218201,3.02005,3311.2,3310.7,0.22]
[1736515218559,3.02005,3311.2,3310.8,0.03670893]
[1736515218715,9.12989664,3311.5,3310.9,0.22]
[1736515219052,5.35213664,3311.5,3311.1,0.7751]
[1736515219397,0.8017,3311.5,3311.2,0.03650539]
[1736515219620,0.03022201,3311.4,3311.2,0.03650539]
[1736515219835,0.03022201,3311.4,3310.9,0.22]
[1736515220536,0.03022201,3311.4,3311.0,0.03660716]
[1736515220714,3.01989,3311.4,3311.0,0.03660716]
[1736515220899,3.05011201,3311.4,3311.0,0.03660716]
[1736515225778,3.01971,3311.6,3311.0,0.84130716]
[1736515226188,3.01971,3311.6,3311.0,0.8047]
[1736515226994,3.05002201,3311.5,3311.1,0.03655627]
[1736515227968,0.03022201,3311.5,3311.2,0.22]
[1736515228171,3.01988,3311.4,3311.2,0.22]
[1736515228368,9.21901865,3311.3,3310.7,0.22]
[1736515228569,3.0203,3311.0,3310.7,0.22]
[1736515228869,6.16883664,3311.3,3310.7,0.22]
[1736515229063,3.02007,3311.2,3310.8,0.03676357]
[1736515229269,5.35213664,3311.3,3310.7,0.22]
[1736515229550,5.35213664,3311.3,3311.0,0.7559]
[1736515229997,5.35213664,3311.3,3311.1,0.03661091]
[1736515231161,9.13150664,3312.0,3311.1,0.03661091]
[1736515231363,8.37150664,3312.0,3311.2,0.7762]
[1736515231820,8.37150664,3312.0,3311.3,0.03650915]
[1736515232253,8.37150664,3312.0,3311.3,0.07439236]
[1736515233391,8.37150664,3312.0,3311.4,0.22]
[1736515233769,8.37150664,3312.0,3311.5,0.07434035]
[1736515234905,3.01937,3312.0,3311.5,0.07434035]
[1736515235394,3.01937,3312.0,3311.4,0.22]
[1736515236301,3.0192,3312.2,3311.5,0.784]
[1736515236476,3.04942201,3312.2,3311.5,0.784]
[1736515236676,3.04942201,3312.2,3311.6,0.07428834]
[1736515237001,3.04942201,3312.2,3311.7,0.07423633]
[1736515237497,3.04942201,3312.2,3311.5,0.784]
[1736515237659,5.35213664,3312.3,3311.8,0.07362535]
[1736515237863,5.35213664,3312.3,3311.6,0.03019342]
[1736515238062,5.35213664,3312.3,3311.9,0.07357335]
[1736515238287,5.35213664,3312.3,3311.5,3.80376]
[1736515238486,5.35213664,3312.3,3312.0,0.07350034]
[1736515238690,5.35213664,3312.3,3311.5,3.80376]
[1736515238902,5.35213664,3312.3,3312.1,0.07344835]
[1736515239067,5.35213664,3312.3,3311.6,0.03019208]
[1736515239261,5.35213664,3312.3,3312.2,0.07314008]
[1736515239466,5.35213664,3312.3,3311.6,0.03019208]
[1736515239661,5.35213664,3312.3,3312.2,0.07313587]
[1736515239862,5.35213664,3312.3,3311.6,0.03019208]
[1736515240062,8.40140865,3312.3,3312.2,0.07313587]
[1736515240302,8.37118664,3312.3,3311.5,0.784]
[1736515240569,8.37118664,3312.3,3311.6,0.29344789]
[1736515240790,3.01905,3312.3,3311.6,0.29344789]
[1736515244332,0.7592,3312.2,3311.7,0.22]
[1736515244834,3.01905,3312.3,3311.8,0.07334387]
[1736515244996,3.04927201,3312.3,3311.7,0.22]
[1736515245347,3.04927201,3312.3,3311.8,0.07333547]
[1736515245507,0.03022201,3312.3,3311.7,0.22]
[1736515245710,0.03022201,3312.5,3311.8,0.07333547]
[1736515246444,3.04910201,3312.5,3311.8,0.07333547]
[1736515249794,3.81611,3311.9,3311.8,0.07333547]
[1736515250464,3.01987,3311.4,3311.3,0.22]
[1736515251240,3.88129201,3311.4,3311.3,0.22]
[1736515251407,6.21355865,3311.4,3310.4,0.8075]
[1736515251608,3.0204,3310.9,3310.5,0.22]
[1736515251802,0.03022201,3310.8,3310.5,0.22]
[1736515252146,3.02072,3310.5,3309.7,0.8075]
[1736515252345,0.03022201,3310.4,3310.2,0.22]
[1736515252499,5.74031884,3310.8,3309.7,0.8075]
[1736515252500,3.02087,3310.3,3309.7,0.8075]
[1736515252835,0.03022201,3310.2,3309.8,0.22]
[1736515253209,2.78272712,3310.6,3309.8,0.22]
[1736515253414,3.02073,3310.5,3309.8,0.22]
[1736515253608,0.03022201,3310.4,3309.8,0.22]
[1736515253809,3.05103201,3310.4,3309.8,0.22]
[1736515254505,3.02081,3310.4,3309.8,0.22]
[1736515254702,3.05109201,3310.3,3309.8,0.22]
[1736515255135,3.05109201,3310.3,3309.7,0.8075]
[1736515255347,3.02097,3310.2,3309.7,1.0255]
[1736515255797,0.03022201,3310.5,3309.7,1.0255]
[1736515256001,3.02089,3310.3,3309.7,1.0255]
[1736515256198,2.78272712,3310.6,3309.7,1.27859545]
[1736515256504,3.02072,3310.5,3309.8,0.03021154]
[1736515256703,3.05094201,3310.5,3309.9,0.218]
[1736515257505,3.85178,3310.7,3309.9,0.218]
[1736515257714,5.35213664,3310.8,3310.0,0.79720924]
[1736515257898,0.03022201,3310.7,3310.1,0.218]
[1736515258098,0.7694,3310.6,3310.1,0.218]
[1736515258301,0.03022201,3310.5,3309.7,0.818]
[1736515258531,3.02089,3310.3,3309.7,0.818]
[1736515258748,0.03022201,3310.5,3309.8,0.29014201]
[1736515259152,0.03022201,3310.5,3309.8,0.218]
[1736515259317,0.03022201,3310.5,3309.9,0.218]
[1736515260551,0.38845692,3310.5,3309.9,0.218]
[1736515261419,0.38845692,3310.5,3309.7,0.818]
[1736515261604,3.8163,3310.2,3309.5,0.218]
[1736515261829,0.03022201,3310.1,3309.5,0.218]
[1736515262031,2.78272712,3310.0,3309.5,0.218]
[1736515262248,0.31151692,3309.9,3309.4,0.218]
[1736515262634,0.31151692,3309.9,3308.8,0.7968]
[1736515262833,0.31151692,3309.9,3308.9,0.218]
[1736515263193,0.8163,3310.2,3309.0,0.82701695]
[1736515263392,0.03022201,3310.1,3309.0,0.7968]
[1736515263541,0.03022201,3310.3,3309.0,0.86935866]
[1736515264140,0.7587,3310.2,3309.2,0.7544]
[1736515264490,0.03022201,3310.1,3309.2,0.7544]
[1736515264696,2.81294913,3310.1,3309.2,0.7544]
[1736515264990,3.0,3310.0,3309.2,0.7544]
[1736515265190,0.03022201,3309.9,3309.3,0.218]
[1736515265351,3.13989203,3310.1,3308.8,0.218]
[1736515265352,0.8088,3309.5,3308.8,0.218]
[1736515265571,0.8088,3309.5,3308.7,0.7791]
[1736515265572,2.81294913,3309.4,3308.7,0.9971]
[1736515267440,3.47512404,3309.4,3308.4,0.7511]
[1736515267679,3.47512404,3309.4,3308.5,0.218]
[1736515270670,5.35213664,3309.3,3308.5,0.218]
[1736515270875,0.03022201,3309.2,3308.5,0.218]
[1736515271185,5.35213664,3309.3,3308.5,0.218]
[1736515271485,0.03022201,3309.2,3308.5,0.218]
[1736515271869,3.58452712,3309.1,3307.9,0.7915]
[1736515272078,3.58452712,3309.1,3308.0,0.218]
[1736515272079,2.78272712,3308.8,3308.0,0.218]
[1736515272243,0.03022201,3308.7,3307.9,0.7915]
[1736515272444,2.78272712,3308.5,3307.9,0.218]
[1736515272751,0.03022201,3308.4,3307.9,0.218]
[1736515272944,2.78272712,3308.2,3307.6,0.7947]
[1736515273177,0.03022201,3308.1,3307.6,0.7947]
[1736515273689,0.8292,3308.3,3307.6,0.7947]
[1736515274395,0.03022201,3308.2,3307.5,1.39816864]
[1736515274578,0.03022201,3308.2,3307.5,0.82606864]
[1736515274744,2.81294913,3308.2,3307.5,0.60806864]
[1736515274945,2.81294913,3308.2,3307.6,0.218]
[1736515276061,2.81294913,3308.2,3307.3,0.7901]
[1736515276300,2.78272712,3307.9,3307.0,0.7973]
[1736515276449,0.03022201,3307.8,3307.0,1.0153]
[1736515279095,0.03022201,3307.8,3307.0,0.7973]
[1736515279695,0.75,3307.7,3307.0,0.7973]
[1736515279897,0.75,3307.7,3306.6,0.218]
[1736515279898,0.03022201,3307.6,3306.6,0.218]
[1736515280081,3.426185,3307.6,3306.7,0.991]
[1736515280260,3.426185,3307.6,3306.8,0.218]
[1736515281779,3.426185,3307.6,3306.7,0.773]
[1736515282813,3.426185,3307.6,3306.7,0.989]
[1736515283015,0.03022201,3307.6,3306.7,0.773]
[1736515283172,3.75,3307.7,3306.7,0.989]
[1736515283373,3.75,3307.7,3306.8,0.07486681]
[1736515283573,0.03022201,3307.6,3306.8,0.07486681]
[1736515284530,0.03022201,3307.6,3306.7,0.989]
[1736515284729,3.726185,3307.6,3306.7,0.989]
[1736515284926,3.726185,3307.6,3306.7,0.773]
[1736515285721,9.07832164,3307.6,3306.7,0.773]
[1736515286033,9.04809963,3307.6,3306.7,0.773]
[1736515286542,6.26537251,3307.6,3306.7,0.773]
[1736515286746,5.35213664,3307.6,3306.7,0.773]
[1736515286893,5.35213664,3307.6,3306.8,0.216]
[1736515287849,5.35213664,3307.6,3306.8,0.24623833]
[1736515288180,5.35213664,3307.6,3306.9,0.89398085]
[1736515288435,5.35213664,3307.6,3307.0,0.03023385]
[1736515288632,5.35213664,3307.6,3307.0,0.10272895]
[1736515288796,5.35213664,3307.6,3307.0,0.0724951]
[1736515289292,5.35213664,3307.6,3307.0,0.10272895]
[1736515289493,5.35213664,3307.6,3307.1,0.8093]
[1736515289744,5.35213664,3307.6,3307.3,0.8093]
[1736515289899,6.17483664,3308.7,3307.5,0.8093]
[1736515290100,0.03022201,3308.6,3307.5,0.8093]
[1736515290299,0.03022201,3308.6,3307.6,0.07210666]
[1736515290544,0.03022201,3308.6,3307.7,0.216]
[1736515290899,0.03022201,3308.6,3307.8,0.07187647]
[1736515291245,0.03022201,3308.6,3307.7,0.216]
[1736515291428,0.03022201,3308.6,3307.9,0.07182434]
[1736515291620,0.92900059,3308.6,3307.7,0.216]
[1736515291829,0.89877858,3308.6,3308.0,0.07177221]
[1736515292136,0.03022201,3308.5,3307.7,0.216]
[1736515292514,0.03022201,3308.5,3307.8,0.07187647]
[1736515292838,0.03022201,3308.5,3307.7,0.216]
[1736515293039,0.03022201,3308.5,3307.9,0.07182434]
[1736515293210,0.03022201,3308.6,3307.7,0.216]
[1736515293417,0.03022201,3308.6,3308.0,0.07177221]
[1736515293729,0.03022201,3308.6,3307.7,0.216]
[1736515293900,6.17483664,3308.7,3307.7,0.216]
[1736515294107,0.03022201,3308.6,3307.8,0.07187647]
[1736515294403,0.03022201,3308.6,3307.7,0.216]
[1736515296152,7.07059302,3308.7,3307.7,0.216]
[1736515297623,0.03022201,3308.6,3307.7,0.216]
[1736515298261,7.07059302,3308.7,3307.7,0.216]
[1736515298608,6.17483664,3308.7,3307.8,0.0718303]
[1736515298848,6.17483664,3308.7,3307.7,0.216]
[1736515299044,6.17483664,3308.7,3307.8,0.80772909]
[1736515299201,6.17483664,3308.7,3307.9,0.07177817]
[1736515299407,6.17483664,3308.7,3307.8,0.80772909]
[1736515299647,5.35213664,3308.7,3307.8,0.80772909]
[1736515300349,0.03022201,3308.6,3307.8,0.7775]
[1736515300521,2.78272712,3308.4,3307.9,0.07149694]
[1736515300703,2.78272712,3308.1,3307.9,0.07149694]
[1736515300910,2.78272712,3308.1,3305.7,0.25]
[1736515300911,1.12979472,3308.0,3307.3,0.216]
[1736515301310,2.78272712,3307.5,3306.3,0.7927]
[1736515301512,0.03022201,3307.4,3306.8,0.216]
[1736515301711,2.78272712,3307.8,3306.9,0.76]
[1736515301965,0.03022201,3307.7,3306.9,0.76]
[1736515302908,0.03022201,3307.8,3306.9,0.76]
[1736515303112,3.733315,3307.8,3306.9,0.76]
[1736515303326,0.7835,3307.7,3306.8,0.216]
[1736515303528,0.03022201,3307.6,3306.8,0.216]
[1736515303726,2.78272712,3307.5,3306.9,0.216]
[1736515303925,0.03022201,3307.4,3306.9,0.216]
[1736515304179,0.28129491,3307.3,3306.9,0.216]
[1736515304547,0.779,3307.2,3306.2,0.15748999]
[1736515304771,0.03022201,3307.1,3306.3,0.216]
[1736515306039,3.56172712,3307.2,3306.3,0.216]
[1736515306634,0.03022201,3307.1,3306.3,0.216]
[1736515307060,0.03022201,3307.1,3306.4,0.07012082]
[1736515307460,0.806,3307.5,3306.5,0.7502]
[1736515307659,0.03022201,3307.4,3306.5,0.82026864]
[1736515308979,0.03022201,3307.4,3306.5,0.7502]
[1736515309751,3.58872712,3307.5,3306.6,0.03023924]
[1736515310074,0.806,3307.5,3306.7,0.28596431]
[1736515310237,0.806,3307.5,3306.7,0.216]
[1736515311541,0.03022201,3307.4,3306.7,0.216]
[1736515311853,0.03022201,3307.4,3306.5,0.7502]
[1736515312050,0.03022201,3307.4,3306.8,0.06991214]
[1736515312250,0.806,3307.5,3306.5,0.7502]
[1736515312251,0.806,3307.5,3306.6,0.03023925]
[1736515312654,0.806,3307.5,3306.7,0.07039184]
[1736515312857,1.12403401,3307.5,3306.6,0.03023925]
[1736515313057,0.03022201,3307.4,3306.8,0.07033968]
[1736515313345,0.03022201,3307.4,3306.8,0.217]
[1736515313571,0.03022201,3307.4,3306.5,0.7502]
[1736515314042,0.03022201,3307.4,3306.6,0.07044401]
[1736515314582,0.42392032,3307.4,3306.6,0.07044401]
[1736515314889,0.42392032,3307.4,3306.7,0.217]
[1736515315645,0.39369831,3307.4,3306.7,0.217]
[1736515315847,0.03022201,3307.3,3306.7,0.217]
[1736515317994,0.39369831,3307.4,3306.7,0.217]
[1736515318333,3.90676113,3307.5,3306.7,0.217]
[1736515318601,0.03022201,3307.4,3306.7,0.217]
[1736515319395,2.78272712,3307.2,3306.5,0.7502]
[1736515319699,2.78272712,3307.2,3306.5,0.9672]
[1736515319700,0.03022201,3307.1,3306.5,0.9672]
[1736515320408,1.12403401,3307.5,3306.5,0.9672]
[1736515320600,5.35213664,3307.7,3306.6,0.03024285]
[1736515320906,5.35213664,3307.7,3306.7,0.7863]
[1736515321096,5.35213664,3307.7,3306.8,0.03023672]
[1736515321303,5.35213664,3307.7,3306.9,0.7863]
[1736515321806,0.03022201,3307.6,3306.9,0.7863]
[1736515322377,0.03022201,3307.6,3307.0,0.217]
[1736515323261,5.35213664,3307.7,3307.1,0.84083677]
[1736515323460,5.35213664,3308.2,3307.1,0.91132172]
[1736515323704,0.03022201,3308.1,3307.1,0.88108495]
[1736515324611,5.35213664,3308.2,3307.1,0.88108495]
[1736515324817,5.35213664,3308.2,3307.3,0.7969]
[1736515325107,5.35213664,3308.2,3307.3,0.7986]
[1736515325307,5.35213664,3308.2,3307.4,0.07034109]
[1736515325681,5.35213664,3308.2,3307.5,0.8142]
[1736515325894,5.35213664,3308.2,3307.5,0.88448894]
[1736515326091,5.35213664,3308.6,3307.6,0.03023091]
[1736515326288,0.03022201,3308.5,3307.7,0.8142]
[1736515326493,5.35213664,3308.6,3307.7,0.88438467]
[1736515327181,3.0,3308.8,3307.9,0.8262]
[1736515327409,0.03022201,3308.7,3308.0,0.217]
[1736515328227,5.35213664,3308.9,3308.1,0.7794]
[1736515328380,0.03022201,3308.8,3308.1,0.7794]
[1736515328583,0.03022201,3308.8,3308.1,0.84937616]
[1736515329681,5.35213664,3308.9,3308.2,0.03022483]
[1736515329876,5.35213664,3308.9,3308.3,0.7759]
[1736515330106,5.35213664,3308.9,3308.3,0.84577192]
[1736515330584,5.35213664,3308.9,3308.4,0.03022299]
[1736515330780,0.03022201,3309.3,3308.3,0.84577192]
[1736515331011,2.81294913,3309.3,3308.5,0.0697677]
[1736515331191,2.81294913,3309.3,3308.4,0.06981981]
[1736515331415,2.81294913,3309.3,3308.6,0.06971559]
[1736515331593,2.81294913,3309.3,3308.5,0.0697677]
[1736515331800,3.75279457,3309.3,3308.3,0.7759]
[1736515331995,3.75279457,3309.3,3308.6,0.06971559]
[1736515332195,3.75279457,3309.3,3308.3,0.7759]
[1736515332402,2.78272712,3309.0,3308.3,0.9929]
[1736515332625,0.03022201,3308.9,3308.4,0.06981981]
[1736515332814,0.28129491,3308.8,3308.3,0.9929]
[1736515333131,0.03022201,3308.7,3308.3,0.9929]
[1736515333725,5.38235865,3308.7,3307.2,0.8282]
[1736515334029,3.0,3308.6,3308.4,0.06937974]
[1736515334227,3.0,3308.6,3307.7,0.217]
[1736515334228,8.13486376,3308.4,3307.7,0.217]
[1736515334383,0.03022201,3308.3,3307.7,0.217]
[1736515334584,6.46864522,3308.4,3307.7,0.217]
[1736515334585,5.35213664,3308.4,3307.7,0.217]
[1736515334824,5.35213664,3308.4,3307.3,0.7949]
[1736515334825,0.03022201,3308.3,3307.3,0.7949]
[1736515335010,0.03022201,3308.3,3307.4,0.217]
[1736515335209,0.03022201,3308.3,3307.4,0.2866076]
[1736515336605,0.7711,3308.2,3307.4,0.2866076]
[1736515336806,0.03022201,3308.1,3307.4,0.2866076]
[1736515337493,2.81294913,3308.1,3307.4,0.2866076]
[1736515337701,2.81294913,3308.1,3307.5,0.217]
[1736515337899,0.35840491,3308.0,3307.5,0.217]
[1736515338196,0.03022201,3307.9,3307.5,0.217]
[1736515338903,0.03022201,3308.1,3307.5,0.217]
[1736515341238,0.7711,3308.2,3307.5,0.217]
[1736515341616,0.7711,3308.2,3307.3,0.7949]
[1736515341817,0.7711,3308.2,3307.6,0.217]
[1736515342137,8.13486376,3308.4,3307.6,0.217]
[1736515342346,5.35213664,3308.4,3307.6,0.217]
[1736515342518,0.7725,3308.5,3307.6,0.217]
[1736515342519,0.03022201,3308.3,3307.7,0.8136]
[1736515342702,5.35213664,3308.7,3307.7,0.91330546]
[1736515345133,0.03022201,3308.6,3307.7,0.06947633]
[1736515345331,3.57152712,3307.8,3307.7,0.06947633]
[1736515345657,3.57152712,3307.8,3306.9,0.216]
[1736515345658,8.92366376,3307.8,3306.9,0.216]
[1736515345963,0.03022201,3307.7,3306.6,0.7687]
[1736515346259,2.78272712,3307.5,3306.7,0.216]
[1736515346456,0.03022201,3307.4,3306.7,0.216]
[1736515347452,0.03022201,3307.5,3306.7,0.216]
[1736515347646,0.03022201,3307.5,3306.8,0.06753164]
[1736515347945,6.14093664,3307.8,3306.8,0.7522]
[1736515348250,0.03022201,3307.7,3306.8,0.7522]
[1736515348405,0.03022201,3307.7,3307.0,0.7522]
[1736515348605,0.03022201,3307.7,3307.1,0.216]
[1736515351246,2.78272712,3307.5,3307.1,0.216]
[1736515351575,0.03022201,3307.4,3307.1,0.216]
[1736515352414,0.03022201,3307.5,3307.1,0.216]
[1736515353447,5.35213664,3307.8,3307.1,0.216]
[1736515353647,5.35213664,3307.8,3307.2,0.8033]
[1736515353852,5.38235865,3307.8,3307.2,0.8033]
[1736515354028,5.35213664,3307.8,3307.2,0.87098706]
[1736515354210,5.35213664,3307.8,3307.3,0.03023322]
[1736515354411,5.78272712,3308.4,3307.3,0.03023322]
[1736515354412,2.78272712,3308.4,3307.4,0.7772]
[1736515354712,0.03022201,3308.3,3307.4,0.7772]
[1736515354952,0.03022201,3308.3,3307.5,0.06753063]
[1736515355451,5.35213664,3308.5,3307.5,0.06753063]
[1736515355452,5.35213664,3308.5,3307.6,0.8072]
[1736515355640,5.35213664,3308.5,3307.6,0.8147]
[1736515355849,6.11923664,3309.2,3307.8,0.0075]
[1736515356054,6.11923664,3309.2,3307.9,0.83742342]
[1736515356226,5.35213664,3309.2,3308.1,0.8013]
[1736515356561,6.14963664,3309.5,3308.3,0.8013]
[1736515356764,6.14963664,3309.5,3308.4,0.03022176]
[1736515356937,6.14963664,3309.5,3308.4,0.09692764]
[1736515357277,0.7975,3309.8,3308.6,0.8088]
[1736515357452,0.03022201,3309.7,3308.8,0.7986]
[1736515357632,0.03022201,3309.7,3308.9,0.216]
[1736515357967,0.03022201,3309.7,3309.0,0.06638489]
[1736515360241,0.03022201,3310.1,3309.3,0.06586486]
[1736515360442,0.03022201,3310.1,3309.1,0.7622]
[1736515360950,0.03022201,3310.1,3309.2,0.06590858]
[1736515361269,0.32792135,3310.0,3309.1,0.7622]
[1736515361564,0.03022201,3309.9,3309.1,0.7622]
[1736515363837,0.03022201,3309.9,3309.2,0.06590858]
[1736515364032,0.03022201,3309.9,3309.1,0.7622]
[1736515364343,0.03022201,3309.9,3309.2,0.06595038]
[1736515364549,0.03022201,3309.9,3309.1,0.7622]
[1736515364762,0.03022201,3309.9,3309.3,0.0658983]
[1736515364944,0.7962,3309.8,3309.2,0.06595038]
[1736515365154,0.7962,3309.8,3308.8,0.7602]
[1736515365155,2.78272712,3309.6,3308.8,0.9762]
[1736515365352,0.03022201,3309.5,3308.8,0.9762]
[1736515365536,0.03022201,3309.5,3308.9,0.27912788]
[1736515369882,0.03022201,3309.5,3308.8,0.7602]
[1736515370063,0.03022201,3309.5,3308.9,0.216]
[1736515370376,0.81650858,3309.4,3308.9,0.216]
[1736515370557,0.03022201,3309.3,3308.9,0.216]
[1736515371460,8.13486376,3309.6,3308.9,0.216]
[1736515371666,0.03022201,3309.5,3308.9,0.216]
[1736515372338,5.35213664,3309.6,3308.9,0.216]
[1736515373146,5.35213664,3309.6,3308.9,0.24621946]
[1736515373350,5.35213664,3309.6,3309.0,0.7622]
[1736515373551,5.35213664,3309.6,3309.0,0.82527579]
[1736515375582,0.03022201,3309.8,3309.0,0.82527579]
[1736515379476,0.03022201,3309.8,3309.0,0.7622]
[1736515380116,2.78272712,3309.6,3309.0,0.7622]
[1736515380277,2.78272712,3309.3,3308.7,0.7514]
[1736515380468,2.78272712,3309.3,3309.1,0.0630905]
[1736515380469,0.03022201,3309.2,3309.1,0.0630905]
[1736515380669,0.03022201,3309.2,3308.8,0.217]
[1736515381763,3.05212201,3309.2,3308.8,0.217]
[1736515382372,3.05212201,3309.2,3308.9,0.06319468]
[1736515382769,2.78272712,3309.0,3308.4,0.7664]
[1736515382969,0.80982201,3308.9,3308.3,0.217]
[1736515383197,3.0226,3308.5,3308.2,0.217]
[1736515383402,0.03022201,3308.4,3308.2,0.217]
[1736515383591,3.05283201,3308.4,3308.2,0.217]
[1736515383966,0.03022201,3308.6,3308.2,0.217]
[1736515384276,3.05266201,3308.6,3308.3,0.05745866]
[1736515384605,3.02253,3308.5,3308.2,0.217]
[1736515384767,3.05285201,3308.4,3308.1,0.217]
[1736515385068,3.02272,3308.3,3308.2,0.05751077]
[1736515385263,0.80433256,3308.3,3308.0,0.217]
[1736515385479,3.02288,3308.1,3308.0,0.217]
[1736515386108,3.02288,3308.1,3307.8,0.217]
[1736515386318,0.03022201,3308.0,3307.8,0.217]
[1736515387525,0.03022201,3308.2,3307.9,0.8294]
[1736515387818,0.03022201,3308.2,3308.0,0.217]
[1736515388007,0.03022201,3308.3,3308.0,0.217]
[1736515389018,3.05295201,3308.3,3308.0,0.217]
[1736515390289,3.02282,3308.2,3308.0,0.217]
[1736515390490,0.03022201,3308.1,3308.0,0.217]
[1736515391226,0.03022201,3308.3,3308.0,0.217]
[1736515391821,0.03022201,3308.3,3308.1,0.7688]
[1736515393019,5.35213664,3308.4,3308.1,0.7688]
[1736515395231,5.35213664,3308.4,3308.0,0.217]
[1736515396418,8.95896376,3309.0,3308.1,0.7983]
[1736515396734,3.05241201,3308.9,3308.1,0.7983]
[1736515396935,0.03022201,3308.9,3308.1,0.7983]
[1736515397147,3.02233,3308.7,3308.1,0.7983]
[1736515398119,3.05238201,3308.9,3308.1,0.7983]
[1736515398500,3.05238201,3308.9,3308.2,0.05843765]
[1736515398902,5.35213664,3309.0,3308.2,3.11144224]
[1736515399100,3.57962712,3309.3,3308.2,3.11144224]
[1736515399101,3.02134,3309.8,3308.5,0.7619]
[1736515399314,3.02146,3309.7,3308.7,3.02228]
[1736515399526,8.93176376,3309.9,3308.9,0.7619]
[1736515399527,3.02155,3309.6,3308.9,0.7619]
[1736515399730,8.93176376,3309.9,3309.0,0.217]
[1736515399924,3.02137,3309.8,3309.0,0.30523947]
[1736515400125,3.02151,3309.6,3309.0,0.2750208]
[1736515400442,3.02174,3309.4,3309.0,0.2750208]
[1736515400641,0.03022201,3309.3,3309.0,0.2750208]
[1736515400845,0.03022201,3309.3,3309.0,0.217]
[1736515401013,0.03022201,3309.3,3309.1,0.05796871]
[1736515401347,0.03022201,3309.5,3309.1,0.05796871]
[1736515401518,0.03022201,3309.5,3309.0,0.217]
[1736515401712,3.02154,3309.6,3309.0,0.217]
[1736515402042,3.02137,3309.8,3309.1,0.05725888]
[1736515402407,0.03022201,3309.7,3309.0,0.217]
[1736515402839,3.02137,3309.8,3309.1,0.05725888]
[1736515403252,3.02137,3309.8,3309.2,0.7529]
[1736515403546,3.02137,3309.8,3309.3,0.05715471]
[1736515404541,0.03022201,3309.7,3309.3,0.05715471]
[1736515404840,3.05166201,3309.7,3309.3,0.05715471]
[1736515405339,3.05166201,3309.7,3309.2,0.7529]
[1736515412850,0.03022201,3309.7,3309.0,0.217]
[1736515413009,5.35213664,3309.9,3309.1,0.8043]
[1736515413209,5.35213664,3309.9,3309.1,0.89166686]
[1736515414356,3.05156201,3309.8,3309.1,0.86145034]
[1736515414811,0.03022201,3309.8,3309.1,0.86145034]
[1736515415246,2.78272712,3309.7,3309.1,0.86145034]
[1736515415451,0.03022201,3309.6,3309.1,0.86145034]
[1736515416361,3.05178201,3309.6,3309.2,0.217]
[1736515416559,3.05178201,3309.6,3309.3,0.05704617]
[1736515417170,3.05178201,3309.6,3309.2,0.217]
[1736515417321,3.05178201,3309.6,3309.3,0.05704617]
[1736515418455,0.03022201,3309.6,3309.3,0.05704617]
[1736515418771,0.03022201,3309.7,3309.3,0.05704617]
[1736515418975,3.02137,3309.8,3309.3,0.05704617]
[1736515419168,0.03022201,3309.7,3309.2,0.217]
[1736515419723,0.03022201,3309.7,3309.3,0.05704617]
[1736515420890,3.02154,3309.6,3309.3,0.05704617]
[1736515421055,0.03022201,3309.5,3309.3,0.05704617]
[1736515421234,0.03022201,3309.8,3309.3,0.05704617]
[1736515421565,0.84370839,3309.8,3309.3,0.05704617]
[1736515421771,3.02148,3309.7,3309.3,0.05704617]
[1736515421960,0.03022201,3309.6,3309.3,0.05704617]
[1736515422274,5.80441712,3309.4,3309.3,0.05704617]
[1736515422432,6.38788103,3309.4,3309.3,0.05704617]
[1736515422773,3.02196,3309.1,3308.7,0.9773]
[1736515422974,0.03022201,3309.0,3308.7,0.9773]
[1736515423182,3.05236201,3309.0,3308.7,0.9773]
[1736515423753,0.03022201,3309.0,3308.7,0.9773]
[1736515423984,3.05215201,3309.2,3308.7,0.9773]
[1736515425575,0.8332,3309.1,3308.8,0.217]
[1736515425893,0.03022201,3309.0,3308.8,0.217]